{"text_format":"1","workbook":"xlsx","n_sheets":2,"sheets":["Upute i postavljanje","Ruj12"],"not_rendered":{"charts":0,"images":0,"macros":1,"external_links":1,"defined_names":13,"comments":0,"pivot_tables":0},"unopened":[],"bounds":{"document_bytes":16777216,"sheet_cells":100000,"rows_first":2000,"rows_last":500,"rows_between":2000,"halvings":0,"cell_chars":16384,"cell_head_chars":4096},"cells_cut":0,"cells_raw":0,"read":"whole","date_system":"1900"}

{"sheet":"Upute i postavljanje","index":0,"n_rows":23,"n_cols":9,"rows_kept":23,"cut":false,"hidden":false,"merged":[[11,7,11,8],[4,7,4,8],[6,7,6,8],[8,7,8,8],[10,7,10,8],[3,2,3,4],[5,2,5,4],[7,2,7,4],[9,2,9,4],[3,7,3,8],[5,7,5,8],[7,7,7,8],[9,7,9,8]]}
[]
[null,"Upute i postavljanje"]
[]
[null,1,"U tablici Predmeti u nastavku upišite nazive predmeta koje želite pratiti u ovom rasporedu.",null,null,null,5,"Unesite datum početka rasporeda u ćeliju A5."]
[]
[null,2,"U tablici Aktivnosti koja se isto tkao nalazi u nastavku izmijenite ogledne aktivnosti koje će odgovarati vašim potrebama.",null,null,null,6,"U retku4 pomoću padajućeg popisa dodajte svoje predmete rasporedu. "]
[]
[null,3,"U ćelijiI14postavite broj redaka koje želite koristiti za aktivnosti vezanih uz domaće zadaće za svaki dan.",null,null,null,7,"Ispod svakog predmeta dodajte zadatke u stupac Zadaci."]
[]
[null,4,"Na listu rasporeda, primjerice Ruj 12 izvršite korake od 5 do 9.",null,null,null,8,"Procijenite ukupne sate potrebne za svaki zadatak u stupcu sati koji je označen ikonom sata."]
[]
[null,null,null,null,null,null,9,"Nakon dovršetka zadatka dvokliknite kvačicom označeni stupac Gotovo pored zadatka."]
[]
[null,null,"Predmeti",null,"Aktivnosti",null,null,"Broj redaka za svaki dan",5]
[null,null,"Matematika 101",null,"Rasprava"]
[null,null,"Engleski 105",null,"Vježbe"]
[null,null,"Francuski 103",null,"Predavanje"]
[null,null,"Znanost 101",null,"Ispit"]
[null,null,"Povijest 101",null,"Čitanje"]
[null,null,null,null,"Promišljanje"]
[null,null,null,null,"Istraživački rad"]
[null,null,null,null,"Pregled zadatka"]
[null,null,null,null,"Učenje"]

{"sheet":"Ruj12","index":1,"n_rows":103,"n_cols":24,"rows_kept":103,"cut":false,"hidden":false,"merged":[]}
[]
[null,"Domaća zadaća"]
[]
[null,"Unesite datum početka","Ukupno","Predmet",null,"Matematika 101","Predmet",null,"Engleski 105","Predmet",null,"Francuski 103","Predmet",null,"Znanost 101","Predmet",null,null,"Predmet",null,null,"Predmet"]
[null,"2011-09-12",null,null,null,"ZADATAK",null,null,"ZADATAK",null,null,"ZADATAK",null,null,"ZADATAK",null,null,"ZADATAK",null,null,"ZADATAK",null,null,"ZADATAK"]
[]
[null,{"$f":"DanRasporeda","v":"2011-09-12"},{"$f":"UkupnoDnevnihSati","v":6.5},1,1.5,"Čitanje",1,2,"Učenje",null,1,"Čitanje",1,1,"Ispit"]
[null,{"$f":"DanRasporeda","v":""},{"$f":"UkupnoDnevnihSati","v":""},1,1,"Pregled zadatka"]
[null,{"$f":"DanRasporeda","v":""},{"$f":"UkupnoDnevnihSati","v":""}]
[null,{"$f":"DanRasporeda","v":""},{"$f":"UkupnoDnevnihSati","v":""}]
[null,{"$f":"DanRasporeda","v":""},{"$f":"UkupnoDnevnihSati","v":""}]
[null,{"$f":"DanRasporeda","v":"2011-09-13"},{"$f":"UkupnoDnevnihSati","v":0}]
[null,{"$f":"DanRasporeda","v":""},{"$f":"UkupnoDnevnihSati","v":""}]
[null,{"$f":"DanRasporeda","v":""},{"$f":"UkupnoDnevnihSati","v":""}]
[null,{"$f":"DanRasporeda","v":""},{"$f":"UkupnoDnevnihSati","v":""}]
[null,{"$f":"DanRasporeda","v":""},{"$f":"UkupnoDnevnihSati","v":""}]
[null,{"$f":"DanRasporeda","v":"2011-09-14"},{"$f":"UkupnoDnevnihSati","v":0}]
[null,{"$f":"DanRasporeda","v":""},{"$f":"UkupnoDnevnihSati","v":""}]
[null,{"$f":"DanRasporeda","v":""},{"$f":"UkupnoDnevnihSati","v":""}]
[null,{"$f":"DanRasporeda","v":""},{"$f":"UkupnoDnevnihSati","v":""}]
[null,{"$f":"DanRasporeda","v":""},{"$f":"UkupnoDnevnihSati","v":""}]
[null,{"$f":"DanRasporeda","v":"2011-09-15"},{"$f":"UkupnoDnevnihSati","v":0}]
[null,{"$f":"DanRasporeda","v":""},{"$f":"UkupnoDnevnihSati","v":""}]
[null,{"$f":"DanRasporeda","v":""},{"$f":"UkupnoDnevnihSati","v":""}]
[null,{"$f":"DanRasporeda","v":""},{"$f":"UkupnoDnevnihSati","v":""}]
[null,{"$f":"DanRasporeda","v":""},{"$f":"UkupnoDnevnihSati","v":""}]
[null,{"$f":"DanRasporeda","v":"2011-09-16"},{"$f":"UkupnoDnevnihSati","v":0}]
[null,{"$f":"DanRasporeda","v":""},{"$f":"UkupnoDnevnihSati","v":""}]
[null,{"$f":"DanRasporeda","v":""},{"$f":"UkupnoDnevnihSati","v":""}]
[null,{"$f":"DanRasporeda","v":""},{"$f":"UkupnoDnevnihSati","v":""}]
[null,{"$f":"DanRasporeda","v":""},{"$f":"UkupnoDnevnihSati","v":""}]
[null,{"$f":"DanRasporeda","v":"2011-09-17"},{"$f":"UkupnoDnevnihSati","v":0}]
[null,{"$f":"DanRasporeda","v":""},{"$f":"UkupnoDnevnihSati","v":""}]
[null,{"$f":"DanRasporeda","v":""},{"$f":"UkupnoDnevnihSati","v":""}]
[null,{"$f":"DanRasporeda","v":""},{"$f":"UkupnoDnevnihSati","v":""}]
[null,{"$f":"DanRasporeda","v":""},{"$f":"UkupnoDnevnihSati","v":""}]
[null,{"$f":"DanRasporeda","v":"2011-09-18"},{"$f":"UkupnoDnevnihSati","v":0}]
[null,{"$f":"DanRasporeda","v":""},{"$f":"UkupnoDnevnihSati","v":""}]
[null,{"$f":"DanRasporeda","v":""},{"$f":"UkupnoDnevnihSati","v":""}]
[null,{"$f":"DanRasporeda","v":""},{"$f":"UkupnoDnevnihSati","v":""}]
[null,{"$f":"DanRasporeda","v":""},{"$f":"UkupnoDnevnihSati","v":""}]
[null,{"$f":"DanRasporeda","v":""},{"$f":"UkupnoDnevnihSati","v":""}]
[null,{"$f":"DanRasporeda","v":""},{"$f":"UkupnoDnevnihSati","v":""}]
[null,{"$f":"DanRasporeda","v":""},{"$f":"UkupnoDnevnihSati","v":""}]
[null,{"$f":"DanRasporeda","v":""},{"$f":"UkupnoDnevnihSati","v":""}]
[null,{"$f":"DanRasporeda","v":""},{"$f":"UkupnoDnevnihSati","v":""}]
[null,{"$f":"DanRasporeda","v":""},{"$f":"UkupnoDnevnihSati","v":""}]
[null,{"$f":"DanRasporeda","v":""},{"$f":"UkupnoDnevnihSati","v":""}]
[null,{"$f":"DanRasporeda","v":""},{"$f":"UkupnoDnevnihSati","v":""}]
[null,{"$f":"DanRasporeda","v":""},{"$f":"UkupnoDnevnihSati","v":""}]
[null,{"$f":"DanRasporeda","v":""},{"$f":"UkupnoDnevnihSati","v":""}]
[null,{"$f":"DanRasporeda","v":""},{"$f":"UkupnoDnevnihSati","v":""}]
[null,{"$f":"DanRasporeda","v":""},{"$f":"UkupnoDnevnihSati","v":""}]
[null,{"$f":"DanRasporeda","v":""},{"$f":"UkupnoDnevnihSati","v":""}]
[null,{"$f":"DanRasporeda","v":""},{"$f":"UkupnoDnevnihSati","v":""}]
[null,{"$f":"DanRasporeda","v":""},{"$f":"UkupnoDnevnihSati","v":""}]
[null,{"$f":"DanRasporeda","v":""},{"$f":"UkupnoDnevnihSati","v":""}]
[null,{"$f":"DanRasporeda","v":""},{"$f":"UkupnoDnevnihSati","v":""}]
[null,{"$f":"DanRasporeda","v":""},{"$f":"UkupnoDnevnihSati","v":""}]
[null,{"$f":"DanRasporeda","v":""},{"$f":"UkupnoDnevnihSati","v":""}]
[null,{"$f":"DanRasporeda","v":""},{"$f":"UkupnoDnevnihSati","v":""}]
[null,{"$f":"DanRasporeda","v":""},{"$f":"UkupnoDnevnihSati","v":""}]
[null,{"$f":"DanRasporeda","v":""},{"$f":"UkupnoDnevnihSati","v":""}]
[null,{"$f":"DanRasporeda","v":""},{"$f":"UkupnoDnevnihSati","v":""}]
[null,{"$f":"DanRasporeda","v":""},{"$f":"UkupnoDnevnihSati","v":""}]
[null,{"$f":"DanRasporeda","v":""},{"$f":"UkupnoDnevnihSati","v":""}]
[null,{"$f":"DanRasporeda","v":""},{"$f":"UkupnoDnevnihSati","v":""}]
[null,{"$f":"DanRasporeda","v":""},{"$f":"UkupnoDnevnihSati","v":""}]
[null,{"$f":"DanRasporeda","v":""},{"$f":"UkupnoDnevnihSati","v":""}]
[null,{"$f":"DanRasporeda","v":""},{"$f":"UkupnoDnevnihSati","v":""}]
[null,{"$f":"DanRasporeda","v":""},{"$f":"UkupnoDnevnihSati","v":""}]
[null,{"$f":"DanRasporeda","v":""},{"$f":"UkupnoDnevnihSati","v":""}]
[null,{"$f":"DanRasporeda","v":""},{"$f":"UkupnoDnevnihSati","v":""}]
[null,{"$f":"DanRasporeda","v":""},{"$f":"UkupnoDnevnihSati","v":""}]
[null,{"$f":"DanRasporeda","v":""},{"$f":"UkupnoDnevnihSati","v":""}]
[null,{"$f":"DanRasporeda","v":""},{"$f":"UkupnoDnevnihSati","v":""}]
[null,{"$f":"DanRasporeda","v":""},{"$f":"UkupnoDnevnihSati","v":""}]
[null,{"$f":"DanRasporeda","v":""},{"$f":"UkupnoDnevnihSati","v":""}]
[null,{"$f":"DanRasporeda","v":""},{"$f":"UkupnoDnevnihSati","v":""}]
[null,{"$f":"DanRasporeda","v":""},{"$f":"UkupnoDnevnihSati","v":""}]
[null,{"$f":"DanRasporeda","v":""},{"$f":"UkupnoDnevnihSati","v":""}]
[null,{"$f":"DanRasporeda","v":""},{"$f":"UkupnoDnevnihSati","v":""}]
[null,{"$f":"DanRasporeda","v":""},{"$f":"UkupnoDnevnihSati","v":""}]
[null,{"$f":"DanRasporeda","v":""},{"$f":"UkupnoDnevnihSati","v":""}]
[null,{"$f":"DanRasporeda","v":""},{"$f":"UkupnoDnevnihSati","v":""}]
[null,{"$f":"DanRasporeda","v":""},{"$f":"UkupnoDnevnihSati","v":""}]
[null,{"$f":"DanRasporeda","v":""},{"$f":"UkupnoDnevnihSati","v":""}]
[null,{"$f":"DanRasporeda","v":""},{"$f":"UkupnoDnevnihSati","v":""}]
[null,{"$f":"DanRasporeda","v":""},{"$f":"UkupnoDnevnihSati","v":""}]
[null,{"$f":"DanRasporeda","v":""},{"$f":"UkupnoDnevnihSati","v":""}]
[null,{"$f":"DanRasporeda","v":""},{"$f":"UkupnoDnevnihSati","v":""}]
[null,{"$f":"DanRasporeda","v":""},{"$f":"UkupnoDnevnihSati","v":""}]
[null,{"$f":"DanRasporeda","v":""},{"$f":"UkupnoDnevnihSati","v":""}]
[null,{"$f":"DanRasporeda","v":""},{"$f":"UkupnoDnevnihSati","v":""}]
[null,{"$f":"DanRasporeda","v":""},{"$f":"UkupnoDnevnihSati","v":""}]
[null,{"$f":"DanRasporeda","v":""},{"$f":"UkupnoDnevnihSati","v":""}]
[null,{"$f":"DanRasporeda","v":""},{"$f":"UkupnoDnevnihSati","v":""}]
[null,{"$f":"DanRasporeda","v":""},{"$f":"UkupnoDnevnihSati","v":""}]
[null,{"$f":"DanRasporeda","v":""},{"$f":"UkupnoDnevnihSati","v":""}]
[null,{"$f":"DanRasporeda","v":""},{"$f":"UkupnoDnevnihSati","v":""}]
[null,{"$f":"DanRasporeda","v":""},{"$f":"UkupnoDnevnihSati","v":""}]
[null,{"$f":"DanRasporeda","v":""},{"$f":"UkupnoDnevnihSati","v":""}]
[null,{"$f":"DanRasporeda","v":""},{"$f":"UkupnoDnevnihSati","v":""}]